[Event "Live Chess"]
[Site "Chess.com"]
[Date "2024.06.01"]
[Round "-"]
[White "mrsmarple1968"]
[Black "Bunny55"]
[Result "1-0"]
[WhiteElo "1788"]
[BlackElo "1182"]
[TimeControl "300"]
[EndTime "9:56:49 PDT"]
[Termination "mrsmarple1968 won by resignation"]

1. e4 {[%clk 0:04:55.4]} 1... c5 {[%clk 0:04:57.2]} 2. Nc3 {[%clk 0:04:53.3]}
2... Nc6 {[%clk 0:04:54.1]} 3. g3 {[%clk 0:04:50.8]} 3... d6 {[%clk 0:04:51.9]}
4. Bg2 {[%clk 0:04:49.3]} 4... g6 {[%clk 0:04:48]} 5. d3 {[%clk 0:04:47.6]} 5...
Bg7 {[%clk 0:04:44]} 6. Bd2 {[%clk 0:04:45.8]} 6... e6 {[%clk 0:04:42.9]} 7.
Nge2 {[%clk 0:04:35.6]} 7... Nge7 {[%clk 0:04:41.4]} 8. O-O {[%clk 0:04:32.9]}
8... O-O {[%clk 0:04:40]} 9. f4 {[%clk 0:04:27.7]} 9... Bd7 {[%clk 0:04:36.9]}
10. h3 {[%clk 0:04:15.1]} 10... f5 {[%clk 0:04:32.4]} 11. Kh2 {[%clk 0:04:10.2]}
11... Rc8 {[%clk 0:04:28.9]} 12. Be3 {[%clk 0:04:03.2]} 12... a6 {[%clk
0:04:12.6]} 13. d4 {[%clk 0:03:57.8]} 13... cxd4 {[%clk 0:04:10.1]} 14. Nxd4
{[%clk 0:03:56.1]} 14... Nxd4 {[%clk 0:04:08.8]} 15. Bxd4 {[%clk 0:03:54.6]}
15... e5 {[%clk 0:04:05.1]} 16. Be3 {[%clk 0:03:46.6]} 16... Qc7 {[%clk
0:03:59.2]} 17. Rf2 {[%clk 0:03:34.6]} 17... b5 {[%clk 0:03:54.8]} 18. a3 {[%clk
0:03:32.3]} 18... Qd8 {[%clk 0:03:41.2]} 19. Qxd6 {[%clk 0:03:24.8]} 19... exf4
{[%clk 0:03:22.1]} 20. Bxf4 {[%clk 0:03:06]} 20... Nc6 {[%clk 0:03:01.6]} 21.
Qd3 {[%clk 0:02:55.5]} 21... b4 {[%clk 0:02:55.4]} 22. axb4 {[%clk 0:02:41.9]}
22... Nxb4 {[%clk 0:02:52.7]} 23. Qd2 {[%clk 0:02:40.5]} 23... a5 {[%clk
0:02:38.1]} 24. Rc1 {[%clk 0:02:32.7]} 24... Bc6 {[%clk 0:02:18.3]} 25. Nd5
{[%clk 0:02:16.3]} 25... Nxd5 {[%clk 0:02:08.9]} 26. exd5 {[%clk 0:02:14.7]}
26... Bb7 {[%clk 0:01:52]} 27. c3 {[%clk 0:02:08.9]} 27... Qd7 {[%clk
0:01:25.5]} 28. d6 {[%clk 0:01:58.9]} 28... Rfd8 {[%clk 0:01:23.2]} 29. Bxb7
{[%clk 0:01:56]} 29... Rb8 {[%clk 0:01:17.7]} 30. Bd5+ {[%clk 0:01:51.2]} 30...
Kh8 {[%clk 0:00:44.8]} 31. Bg2 {[%clk 0:01:46.5]} 31... Qb5 {[%clk 0:00:35.4]}
32. Rc2 {[%clk 0:01:42.4]} 1-0

[Event "Live Chess"]
[Site "Chess.com"]
[Date "2024.06.01"]
[Round "-"]
[White "Pedrada88"]
[Black "raimundklein"]
[Result "1-0"]
[WhiteElo "2548"]
[BlackElo "1567"]
[TimeControl "300"]
[EndTime "9:57:04 PDT"]
[Termination "Pedrada88 won by checkmate"]

1. Nf3 {[%clk 0:04:57.7]} 1... Nf6 {[%clk 0:04:58.2]} 2. d4 {[%clk 0:04:57.2]}
2... g6 {[%clk 0:04:57]} 3. Nc3 {[%clk 0:04:56.8]} 3... d5 {[%clk 0:04:52.6]} 4.
Bg5 {[%clk 0:04:55.4]} 4... Bg7 {[%clk 0:04:51.4]} 5. Qd3 {[%clk 0:04:54.6]}
5... O-O {[%clk 0:04:50.1]} 6. e3 {[%clk 0:04:53.7]} 6... a6 {[%clk 0:04:31.2]}
7. h4 {[%clk 0:04:52.6]} 7... Nbd7 {[%clk 0:04:26.1]} 8. h5 {[%clk 0:04:51.6]}
8... c5 {[%clk 0:04:21]} 9. hxg6 {[%clk 0:04:46]} 9... hxg6 {[%clk 0:04:14.3]}
10. O-O-O {[%clk 0:04:45.3]} 10... c4 {[%clk 0:04:05.6]} 11. Qe2 {[%clk
0:04:44.3]} 11... b5 {[%clk 0:04:03.8]} 12. e4 {[%clk 0:04:43.1]} 12... dxe4
{[%clk 0:03:58.9]} 13. Nxe4 {[%clk 0:04:41.8]} 13... Nxe4 {[%clk 0:03:54.5]} 14.
Qxe4 {[%clk 0:04:41.7]} 14... Nf6 {[%clk 0:03:53.4]} 15. Qh4 {[%clk 0:04:40.1]}
15... Re8 {[%clk 0:03:45.5]} 16. Ne5 {[%clk 0:04:37.9]} 16... Be6 {[%clk
0:03:38.2]} 17. Bh6 {[%clk 0:04:28.6]} 17... Nd5 {[%clk 0:02:43.8]} 18. Bxg7
{[%clk 0:04:25.2]} 18... Kxg7 {[%clk 0:02:42.9]} 19. Qh6+ {[%clk 0:04:24.1]}
19... Kf6 {[%clk 0:02:42]} 20. Qh4+ {[%clk 0:04:12.7]} 20... Kg7 {[%clk
0:02:40.1]} 21. Qh6+ {[%clk 0:04:05.3]} 21... Kf6 {[%clk 0:02:38.9]} 22. f4
{[%clk 0:03:49.2]} 22... Rh8 {[%clk 0:02:35.1]} 23. Qg5+ {[%clk 0:03:48]} 23...
Kg7 {[%clk 0:02:31.9]} 24. Be2 {[%clk 0:03:46.8]} 24... Qd7 {[%clk 0:02:28.8]}
25. g4 {[%clk 0:03:40.2]} 25... Ne3 {[%clk 0:02:17.7]} 26. f5 {[%clk 0:03:25.8]}
26... Nxf5 {[%clk 0:02:14.5]} 27. gxf5 {[%clk 0:03:23.1]} 27... Bxf5 {[%clk
0:02:13.7]} 28. Bf3 {[%clk 0:03:19.7]} 28... Qe6 {[%clk 0:02:06.6]} 29. Bxa8
{[%clk 0:03:17]} 29... Rxa8 {[%clk 0:02:05.3]} 30. Qh6+ {[%clk 0:03:15.7]} 30...
Kf6 {[%clk 0:02:04.1]} 31. Rdf1 {[%clk 0:03:12.2]} 31... Qd5 {[%clk 0:01:57.4]}
32. Qh4+ {[%clk 0:03:00.4]} 32... Kg7 {[%clk 0:01:55.3]} 33. Qh7+ {[%clk
0:02:56.8]} 33... Kf6 {[%clk 0:01:53.7]} 34. Rxf5+ {[%clk 0:02:54.6]} 34... Kxf5
{[%clk 0:01:40.8]} 35. Rf1+ {[%clk 0:02:53]} 35... Ke4 {[%clk 0:01:33.8]} 36.
Qh4+ {[%clk 0:02:51.2]} 36... Ke3 {[%clk 0:01:29.3]} 37. Qf4+ {[%clk 0:02:50]}
37... Ke2 {[%clk 0:01:26]} 38. Qf2# {[%clk 0:02:49.1]} 1-0

[Event "Live Chess"]
[Site "Chess.com"]
[Date "2024.06.01"]
[Round "-"]
[White "dl_chess"]
[Black "SvitlanaJ"]
[Result "1-0"]
[WhiteElo "1165"]
[BlackElo "383"]
[TimeControl "300"]
[EndTime "9:57:14 PDT"]
[Termination "dl_chess won by checkmate"]

1. e4 {[%clk 0:04:55.2]} 1... e5 {[%clk 0:04:58.3]} 2. Bc4 {[%clk 0:04:53.9]}
2... Bc5 {[%clk 0:04:54.3]} 3. Nf3 {[%clk 0:04:51.6]} 3... Nc6 {[%clk 0:04:50]}
4. d3 {[%clk 0:04:41.5]} 4... Nf6 {[%clk 0:04:43.3]} 5. O-O {[%clk 0:04:29.3]}
5... O-O {[%clk 0:04:41.2]} 6. Nc3 {[%clk 0:04:25.8]} 6... h6 {[%clk 0:04:39.3]}
7. Qe2 {[%clk 0:04:22.2]} 7... d6 {[%clk 0:04:37.3]} 8. Be3 {[%clk 0:04:20.8]}
8... Bg4 {[%clk 0:04:30.3]} 9. Bxc5 {[%clk 0:04:18.8]} 9... dxc5 {[%clk
0:04:28.3]} 10. h3 {[%clk 0:04:14.9]} 10... Bxf3 {[%clk 0:04:22.3]} 11. Qxf3
{[%clk 0:04:13.3]} 11... Nd4 {[%clk 0:04:14.9]} 12. Qg3 {[%clk 0:04:03.6]} 12...
Nxc2 {[%clk 0:04:10.1]} 13. Rac1 {[%clk 0:04:00.8]} 13... Nd4 {[%clk 0:04:06.4]}
14. f4 {[%clk 0:03:43]} 14... a6 {[%clk 0:03:55]} 15. fxe5 {[%clk 0:03:40.3]}
15... Nh5 {[%clk 0:03:48.6]} 16. Qg4 {[%clk 0:03:34]} 16... g6 {[%clk
0:03:33.5]} 17. Qxg6+ {[%clk 0:03:27]} 17... Kh8 {[%clk 0:03:28.6]} 18. Qxh6+
{[%clk 0:03:20.9]} 18... Kg8 {[%clk 0:03:25.2]} 19. Qxh5 {[%clk 0:03:14.4]}
19... Qd7 {[%clk 0:03:02.7]} 20. Rf4 {[%clk 0:03:05.5]} 20... b5 {[%clk
0:02:49.6]} 21. Rg4+ {[%clk 0:03:03.5]} 21... Qxg4 {[%clk 0:02:38.5]} 22. Qxg4+
{[%clk 0:03:02.5]} 22... Kh8 {[%clk 0:02:33.7]} 23. Qh5+ {[%clk 0:02:56.4]}
23... Kg8 {[%clk 0:02:31.4]} 24. Bd5 {[%clk 0:02:50.7]} 24... Rae8 {[%clk
0:02:05.8]} 25. Rf1 {[%clk 0:02:40.3]} 25... Ne6 {[%clk 0:02:01.2]} 26. Rf3
{[%clk 0:02:27.4]} 26... b4 {[%clk 0:01:41.4]} 27. Rg3+ {[%clk 0:02:12.1]} 27...
Ng7 {[%clk 0:01:38.8]} 28. Qh6 {[%clk 0:01:58.5]} 28... bxc3 {[%clk 0:01:28.7]}
29. Qxg7# {[%clk 0:01:56.8]} 1-0

[Event "Live Chess"]
[Site "Chess.com"]
[Date "2024.06.01"]
[Round "-"]
[White "TC2304"]
[Black "Andysav3"]
[Result "1-0"]
[WhiteElo "2349"]
[BlackElo "1863"]
[TimeControl "300"]
[EndTime "9:57:16 PDT"]
[Termination "TC2304 won by resignation"]

1. c4 {[%clk 0:04:53.1]} 1... e5 {[%clk 0:04:58.4]} 2. Nc3 {[%clk 0:04:50.3]}
2... d6 {[%clk 0:04:57.2]} 3. g3 {[%clk 0:04:49.7]} 3... f5 {[%clk 0:04:55.8]}
4. Bg2 {[%clk 0:04:38.6]} 4... Nf6 {[%clk 0:04:54.7]} 5. e3 {[%clk 0:04:37.1]}
5... Be7 {[%clk 0:04:48.3]} 6. Nge2 {[%clk 0:04:36.3]} 6... O-O {[%clk
0:04:45.8]} 7. O-O {[%clk 0:04:31.4]} 7... c6 {[%clk 0:04:37.7]} 8. d4 {[%clk
0:04:28.7]} 8... Be6 {[%clk 0:04:23.8]} 9. d5 {[%clk 0:04:27]} 9... Bf7 {[%clk
0:04:15.1]} 10. b4 {[%clk 0:04:18.7]} 10... a5 {[%clk 0:04:07.5]} 11. bxa5
{[%clk 0:04:17.3]} 11... Qxa5 {[%clk 0:04:01]} 12. Rb1 {[%clk 0:04:14.9]} 12...
cxd5 {[%clk 0:03:43.9]} 13. Nxd5 {[%clk 0:04:11.1]} 13... Nxd5 {[%clk 0:03:40]}
14. cxd5 {[%clk 0:04:08.1]} 14... b6 {[%clk 0:03:24.8]} 15. Bd2 {[%clk 0:03:50]}
15... Qa6 {[%clk 0:03:23.3]} 16. Nc3 {[%clk 0:03:42.2]} 16... Nd7 {[%clk
0:03:19.2]} 17. Qb3 {[%clk 0:03:41.1]} 17... Rfc8 {[%clk 0:03:06.3]} 18. Rfc1
{[%clk 0:03:37.4]} 18... Qa3 {[%clk 0:02:55.7]} 19. Bf1 {[%clk 0:03:28.8]} 19...
Qxb3 {[%clk 0:02:40.7]} 20. Rxb3 {[%clk 0:03:24.6]} 20... Rc5 {[%clk 0:02:34.8]}
21. Bb5 {[%clk 0:03:17.3]} 21... Bxd5 {[%clk 0:02:20.8]} 22. Nxd5 {[%clk
0:03:16.2]} 22... Rxd5 {[%clk 0:02:19.6]} 23. Bc4 {[%clk 0:03:09.5]} 23... Nf6
{[%clk 0:02:15.1]} 24. Rb5 {[%clk 0:03:07.8]} 1-0

[Event "Live Chess"]
[Site "Chess.com"]
[Date "2024.06.01"]
[Round "-"]
[White "viktor_forever1994"]
[Black "Crowded_House"]
[Result "0-1"]
[WhiteElo "1407"]
[BlackElo "1738"]
[TimeControl "300"]
[EndTime "9:57:17 PDT"]
[Termination "Crowded_House won on time"]

1. e4 {[%clk 0:04:58.8]} 1... e6 {[%clk 0:04:58.4]} 2. Nf3 {[%clk 0:04:58.7]}
2... d5 {[%clk 0:04:55.1]} 3. d4 {[%clk 0:04:58.6]} 3... dxe4 {[%clk 0:04:53.3]}
4. Nfd2 {[%clk 0:04:57.8]} 4... Nf6 {[%clk 0:04:50.6]} 5. Nc3 {[%clk 0:04:53.5]}
5... e3 {[%clk 0:04:44.7]} 6. fxe3 {[%clk 0:04:46.7]} 6... Nd5 {[%clk 0:04:39]}
7. Nxd5 {[%clk 0:04:38]} 7... Qxd5 {[%clk 0:04:33.3]} 8. Qf3 {[%clk 0:04:37]}
8... Qxf3 {[%clk 0:04:31.5]} 9. Nxf3 {[%clk 0:04:33]} 9... Bd6 {[%clk
0:04:28.5]} 10. c4 {[%clk 0:04:19.3]} 10... b6 {[%clk 0:04:27]} 11. a3 {[%clk
0:04:11.8]} 11... Bb7 {[%clk 0:04:20.5]} 12. Be2 {[%clk 0:04:09.1]} 12... O-O
{[%clk 0:04:18.8]} 13. b4 {[%clk 0:04:06.6]} 13... c5 {[%clk 0:04:03.9]} 14.
bxc5 {[%clk 0:03:56.6]} 14... bxc5 {[%clk 0:04:02.5]} 15. O-O {[%clk 0:03:50.9]}
15... cxd4 {[%clk 0:03:43.9]} 16. exd4 {[%clk 0:03:45.3]} 16... Bc7 {[%clk
0:03:26.1]} 17. Rb1 {[%clk 0:03:43.6]} 17... Be4 {[%clk 0:03:21.5]} 18. Rb4
{[%clk 0:03:29.2]} 18... Nc6 {[%clk 0:02:55.1]} 19. Rb3 {[%clk 0:03:07.4]} 19...
Rfb8 {[%clk 0:02:50.5]} 20. Rxb8+ {[%clk 0:02:27.9]} 20... Rxb8 {[%clk
0:02:49.2]} 21. Be3 {[%clk 0:02:20]} 21... Bb6 {[%clk 0:02:24.4]} 22. Rd1 {[%clk
0:02:05.7]} 22... h6 {[%clk 0:02:14.5]} 23. Kf2 {[%clk 0:02:03.5]} 23... Rd8
{[%clk 0:02:05.7]} 24. c5 {[%clk 0:01:48.3]} 24... Bc7 {[%clk 0:01:57]} 25. Rd2
{[%clk 0:01:32.4]} 25... Rb8 {[%clk 0:01:53.2]} 26. a4 {[%clk 0:01:12.5]} 26...
Rb4 {[%clk 0:01:41.1]} 27. Bb5 {[%clk 0:01:02.8]} 27... Na5 {[%clk 0:01:22.5]}
28. Ra2 {[%clk 0:00:26.8]} 28... Bd5 {[%clk 0:01:20.3]} 29. Rd2 {[%clk
0:00:23.7]} 29... Nb3 {[%clk 0:01:12.4]} 30. Rb2 {[%clk 0:00:21.4]} 30... Ba5
{[%clk 0:01:05.9]} 31. Nd2 {[%clk 0:00:08.1]} 31... Nxd2 {[%clk 0:01:04.1]} 0-1

[Event "Live Chess"]
[Site "Chess.com"]
[Date "2024.06.01"]
[Round "-"]
[White "PureDashingOctopus"]
[Black "JohanKjeldahl"]
[Result "0-1"]
[WhiteElo "2207"]
[BlackElo "1851"]
[TimeControl "300"]
[EndTime "9:57:22 PDT"]
[Termination "JohanKjeldahl won on time"]

1. e4 {[%clk 0:04:57.9]} 1... c5 {[%clk 0:04:58.4]} 2. Nc3 {[%clk 0:04:56.5]}
2... e6 {[%clk 0:04:57]} 3. Nge2 {[%clk 0:04:55.1]} 3... Nc6 {[%clk 0:04:54.9]}
4. d4 {[%clk 0:04:54.3]} 4... cxd4 {[%clk 0:04:53.3]} 5. Nxd4 {[%clk 0:04:54]}
5... Qc7 {[%clk 0:04:52.5]} 6. Be3 {[%clk 0:04:51.8]} 6... a6 {[%clk 0:04:51.3]}
7. g4 {[%clk 0:04:51]} 7... h6 {[%clk 0:04:48]} 8. Qd2 {[%clk 0:04:49.6]} 8...
Nf6 {[%clk 0:04:45.6]} 9. f3 {[%clk 0:04:48.7]} 9... b5 {[%clk 0:04:43.7]} 10.
O-O-O {[%clk 0:04:45.8]} 10... Be7 {[%clk 0:04:38.2]} 11. h4 {[%clk 0:04:24]}
11... Bb7 {[%clk 0:04:33.4]} 12. Be2 {[%clk 0:04:14.8]} 12... O-O-O {[%clk
0:04:31.7]} 13. g5 {[%clk 0:04:12.7]} 13... hxg5 {[%clk 0:04:29.2]} 14. hxg5
{[%clk 0:04:11.5]} 14... Nh5 {[%clk 0:04:23.6]} 15. f4 {[%clk 0:03:45.6]} 15...
Ng3 {[%clk 0:04:20.5]} 16. Rxh8 {[%clk 0:03:43.4]} 16... Nxe2+ {[%clk
0:04:18.3]} 17. Qxe2 {[%clk 0:03:38.3]} 17... Rxh8 {[%clk 0:04:17.8]} 18. Qg2
{[%clk 0:03:30.3]} 18... b4 {[%clk 0:04:11.1]} 19. Nce2 {[%clk 0:03:23.2]} 19...
Na5 {[%clk 0:04:06.1]} 20. Nb3 {[%clk 0:03:12.4]} 20... Nc4 {[%clk 0:04:01.1]}
21. Bd4 {[%clk 0:03:10.8]} 21... e5 {[%clk 0:03:51.4]} 22. fxe5 {[%clk
0:02:57.8]} 22... Nxe5 {[%clk 0:03:38.7]} 23. Kb1 {[%clk 0:02:42.4]} 23... Rh5
{[%clk 0:03:30.1]} 24. Bxe5 {[%clk 0:02:29.5]} 24... Qxe5 {[%clk 0:03:27.2]} 25.
Qg4 {[%clk 0:02:28.8]} 25... Rh2 {[%clk 0:03:04.9]} 26. Qxd7+ {[%clk 0:01:57.6]}
26... Kb8 {[%clk 0:03:03.6]} 27. Qe8+ {[%clk 0:01:30.1]} 27... Ka7 {[%clk
0:03:02.2]} 28. Nec1 {[%clk 0:00:54.2]} 28... Qxe4 {[%clk 0:02:56.8]} 29. Nd3
{[%clk 0:00:42.1]} 29... Bxg5 {[%clk 0:02:48.5]} 30. Qxf7 {[%clk 0:00:38.9]}
30... Bf6 {[%clk 0:02:42.9]} 31. Ndc5 {[%clk 0:00:32.8]} 31... Qf3 {[%clk
0:02:40.9]} 32. Rc1 {[%clk 0:00:17.6]} 32... Qc6 {[%clk 0:02:21.9]} 33. Na5
{[%clk 0:00:15.8]} 33... Qb6 {[%clk 0:02:08.2]} 34. Ncxb7 {[%clk 0:00:13.9]}
34... b3 {[%clk 0:02:04.4]} 35. axb3 {[%clk 0:00:07.4]} 35... Qe3 {[%clk
0:01:55.2]} 36. Nd6+ {[%clk 0:00:03.8]} 36... Kb6 {[%clk 0:01:52.4]} 37. Ndc4+
{[%clk 0:00:03]} 37... Kc5 {[%clk 0:01:48.1]} 38. Qc7+ {[%clk 0:00:02.6]} 38...
Kd4 {[%clk 0:01:43.9]} 39. Qd6+ {[%clk 0:00:02.2]} 39... Ke4 {[%clk 0:01:41.9]}
40. Qe6+ {[%clk 0:00:01.7]} 40... Kf3 {[%clk 0:01:39.1]} 41. Qxe3+ {[%clk
0:00:01.6]} 41... Kg4 {[%clk 0:01:37.8]} 42. Rg1+ {[%clk 0:00:01.1]} 42... Kh5
{[%clk 0:01:33.3]} 43. Qf3+ {[%clk 0:00:01]} 43... Kh6 {[%clk 0:01:28.9]} 44.
Qf4+ {[%clk 0:00:00.9]} 44... Kh7 {[%clk 0:01:24.6]} 45. Qxh2+ {[%clk
0:00:00.8]} 45... Kg8 {[%clk 0:01:22.7]} 46. Qb8+ {[%clk 0:00:00.7]} 46... Kh7
{[%clk 0:01:20.7]} 47. Rh1+ {[%clk 0:00:00.6]} 47... Kg6 {[%clk 0:01:19.4]} 48.
Qe8+ {[%clk 0:00:00.5]} 48... Kg5 {[%clk 0:01:17.8]} 49. Qe3+ {[%clk 0:00:00.4]}
49... Kg6 {[%clk 0:01:16.1]} 50. Qe4+ {[%clk 0:00:00.2]} 50... Kf7 {[%clk
0:01:14.6]} 51. Nd6+ {[%clk 0:00:00.1]} 51... Kg8 {[%clk 0:01:10.7]} 0-1

[Event "Live Chess"]
[Site "Chess.com"]
[Date "2024.06.01"]
[Round "-"]
[White "GwaryTek"]
[Black "Bradfield133"]
[Result "0-1"]
[WhiteElo "1899"]
[BlackElo "2039"]
[TimeControl "300"]
[EndTime "9:57:36 PDT"]
[Termination "Bradfield133 won on time"]

1. d4 {[%clk 0:04:58.1]} 1... d6 {[%clk 0:04:58.1]} 2. c4 {[%clk 0:04:57.4]}
2... f5 {[%clk 0:04:57]} 3. Nc3 {[%clk 0:04:57.3]} 3... Nf6 {[%clk 0:04:55.7]}
4. Nf3 {[%clk 0:04:57.2]} 4... c6 {[%clk 0:04:54.2]} 5. h3 {[%clk 0:04:57.1]}
5... Qc7 {[%clk 0:04:51.2]} 6. Bg5 {[%clk 0:04:53.3]} 6... Nbd7 {[%clk
0:04:48.8]} 7. g4 {[%clk 0:04:51.4]} 7... fxg4 {[%clk 0:04:43.9]} 8. hxg4 {[%clk
0:04:51.3]} 8... Nxg4 {[%clk 0:04:42.8]} 9. Qc2 {[%clk 0:04:47.3]} 9... Ngf6
{[%clk 0:04:32.8]} 10. Bh3 {[%clk 0:04:34.2]} 10... g6 {[%clk 0:04:29.8]} 11.
Be6 {[%clk 0:04:32]} 11... Bg7 {[%clk 0:04:26.3]} 12. O-O-O {[%clk 0:04:20.4]}
12... Nf8 {[%clk 0:04:20.9]} 13. Bxc8 {[%clk 0:04:12.3]} 13... Qxc8 {[%clk
0:04:20.8]} 14. e4 {[%clk 0:04:11.2]} 14... Qg4 {[%clk 0:03:43.6]} 15. Qd3
{[%clk 0:03:46.8]} 15... O-O-O {[%clk 0:03:12.4]} 16. Rh4 {[%clk 0:03:14.5]}
16... Qd7 {[%clk 0:02:50.6]} 17. Qc2 {[%clk 0:03:12.4]} 17... Ne6 {[%clk
0:02:34.1]} 18. e5 {[%clk 0:02:27.5]} 18... Nh5 {[%clk 0:02:19]} 19. Be3 {[%clk
0:02:20.4]} 19... Rhf8 {[%clk 0:02:00.3]} 20. Ne1 {[%clk 0:01:47.9]} 20... Kb8
{[%clk 0:01:57.1]} 21. d5 {[%clk 0:01:42.8]} 21... Nef4 {[%clk 0:01:43.9]} 22.
e6 {[%clk 0:01:32.5]} 22... Qe8 {[%clk 0:01:40.8]} 23. Qe4 {[%clk 0:01:18.2]}
23... Bxc3 {[%clk 0:01:19.9]} 24. bxc3 {[%clk 0:01:09.2]} 24... g5 {[%clk
0:01:18.8]} 25. Rh1 {[%clk 0:00:51.9]} 25... cxd5 {[%clk 0:01:08.9]} 26. cxd5
{[%clk 0:00:46.9]} 26... Qb5 {[%clk 0:01:05.1]} 27. c4 {[%clk 0:00:32.9]} 27...
Rc8 {[%clk 0:01:01.9]} 28. Rd2 {[%clk 0:00:18.7]} 28... Rxc4+ {[%clk 0:00:59.3]}
29. Qxc4 {[%clk 0:00:14]} 29... Qxc4+ {[%clk 0:00:58]} 30. Rc2 {[%clk
0:00:13.9]} 30... Qxd5 {[%clk 0:00:52.8]} 31. Bxf4 {[%clk 0:00:12.4]} 31... gxf4
{[%clk 0:00:42.9]} 32. Rg1 {[%clk 0:00:09.2]} 32... Rc8 {[%clk 0:00:36.3]} 33.
Rxc8+ {[%clk 0:00:01]} 33... Kxc8 {[%clk 0:00:35.2]} 34. Rg8+ {[%clk 0:00:00.9]}
34... Kc7 {[%clk 0:00:34.2]} 0-1

[Event "Live Chess"]
[Site "Chess.com"]
[Date "2024.06.01"]
[Round "-"]
[White "nitrofish07"]
[Black "powerchs"]
[Result "1-0"]
[WhiteElo "2152"]
[BlackElo "1233"]
[TimeControl "300"]
[EndTime "9:57:40 PDT"]
[Termination "nitrofish07 won by checkmate"]

1. e4 {[%clk 0:04:59.1]} 1... c5 {[%clk 0:04:56.1]} 2. Nf3 {[%clk 0:04:57.6]}
2... d6 {[%clk 0:04:53.2]} 3. d4 {[%clk 0:04:56.9]} 3... cxd4 {[%clk 0:04:51.6]}
4. Nxd4 {[%clk 0:04:56.8]} 4... Nf6 {[%clk 0:04:49.9]} 5. Nc3 {[%clk 0:04:55.5]}
5... a6 {[%clk 0:04:47]} 6. Rg1 {[%clk 0:04:54.1]} 6... e5 {[%clk 0:04:39.7]} 7.
Nb3 {[%clk 0:04:50.9]} 7... Nc6 {[%clk 0:04:26.6]} 8. g4 {[%clk 0:04:47.5]} 8...
h6 {[%clk 0:03:49.5]} 9. h4 {[%clk 0:04:46.2]} 9... b5 {[%clk 0:03:35.9]} 10. g5
{[%clk 0:04:44.2]} 10... hxg5 {[%clk 0:03:29.1]} 11. hxg5 {[%clk 0:04:43.8]}
11... Nd7 {[%clk 0:03:19.7]} 12. Be3 {[%clk 0:04:39.3]} 12... Nb6 {[%clk
0:03:13.9]} 13. a4 {[%clk 0:04:34.8]} 13... b4 {[%clk 0:03:10.9]} 14. Nd5 {[%clk
0:04:33.4]} 14... Nxd5 {[%clk 0:03:05.2]} 15. exd5 {[%clk 0:04:28.9]} 15... Ne7
{[%clk 0:02:37.5]} 16. Qf3 {[%clk 0:04:27.4]} 16... Nf5 {[%clk 0:02:35.2]} 17.
O-O-O {[%clk 0:04:22.6]} 17... Bd7 {[%clk 0:02:28.1]} 18. Bd3 {[%clk 0:04:10.5]}
18... Nxe3 {[%clk 0:02:18.6]} 19. fxe3 {[%clk 0:04:10.4]} 19... Bxa4 {[%clk
0:02:04.9]} 20. Rdf1 {[%clk 0:04:08]} 20... Qe7 {[%clk 0:01:51.2]} 21. g6 {[%clk
0:04:05.2]} 21... f6 {[%clk 0:01:42.7]} 22. Bf5 {[%clk 0:04:00.5]} 22... Bxb3
{[%clk 0:01:37.4]} 23. cxb3 {[%clk 0:03:59.5]} 23... Rc8+ {[%clk 0:01:35.8]} 24.
Bxc8 {[%clk 0:03:58.2]} 24... Qc7+ {[%clk 0:01:33.8]} 25. Kb1 {[%clk 0:03:56.8]}
25... Qxc8 {[%clk 0:01:32.9]} 26. Rc1 {[%clk 0:03:55.1]} 26... Qb7 {[%clk
0:01:31.6]} 27. Qf5 {[%clk 0:03:49.8]} 27... Be7 {[%clk 0:01:21.4]} 28. Rc8+
{[%clk 0:03:45.1]} 28... Bd8 {[%clk 0:01:19.8]} 29. Rgc1 {[%clk 0:03:26.5]}
29... Qxd5 {[%clk 0:01:09.6]} 30. Rxd8+ {[%clk 0:03:12.9]} 30... Kxd8 {[%clk
0:01:06.7]} 31. Qc8+ {[%clk 0:03:11]} 31... Ke7 {[%clk 0:01:04.6]} 32. Rc7#
{[%clk 0:03:10.5]} 1-0

[Event "Live Chess"]
[Site "Chess.com"]
[Date "2024.06.01"]
[Round "-"]
[White "Dhaydon19"]
[Black "A3ndrey9"]
[Result "1-0"]
[WhiteElo "2700"]
[BlackElo "1273"]
[TimeControl "300"]
[EndTime "9:57:40 PDT"]
[Termination "Dhaydon19 won by resignation"]

1. d4 {[%clk 0:04:56.7]} 1... c6 {[%clk 0:04:58.6]} 2. Nf3 {[%clk 0:04:56.4]}
2... d5 {[%clk 0:04:58.1]} 3. g3 {[%clk 0:04:56.1]} 3... Nf6 {[%clk 0:04:55]} 4.
Bg2 {[%clk 0:04:55.8]} 4... Bf5 {[%clk 0:04:54.3]} 5. c3 {[%clk 0:04:55.5]} 5...
e6 {[%clk 0:04:54]} 6. O-O {[%clk 0:04:55.1]} 6... Be7 {[%clk 0:04:53.3]} 7.
Nbd2 {[%clk 0:04:54.8]} 7... O-O {[%clk 0:04:52.8]} 8. Re1 {[%clk 0:04:54.4]}
8... Nbd7 {[%clk 0:04:51.9]} 9. Nh4 {[%clk 0:04:53.6]} 9... Be4 {[%clk
0:04:48.5]} 10. f3 {[%clk 0:04:52.1]} 10... Bg6 {[%clk 0:04:42.2]} 11. Nxg6
{[%clk 0:04:50.7]} 11... hxg6 {[%clk 0:04:42.1]} 12. e4 {[%clk 0:04:50.1]} 12...
dxe4 {[%clk 0:04:40.8]} 13. fxe4 {[%clk 0:04:49.8]} 13... c5 {[%clk 0:04:39]}
14. e5 {[%clk 0:04:48.3]} 14... Nd5 {[%clk 0:04:37.7]} 15. Nb3 {[%clk 0:04:44]}
15... a5 {[%clk 0:04:28.4]} 16. a4 {[%clk 0:04:41.6]} 16... cxd4 {[%clk
0:04:24.4]} 17. Nxd4 {[%clk 0:04:38.4]} 17... Bc5 {[%clk 0:04:21.8]} 18. Kh1
{[%clk 0:04:36.7]} 18... N7b6 {[%clk 0:04:03.9]} 19. Nb5 {[%clk 0:04:34.1]}
19... Nc4 {[%clk 0:03:56.8]} 20. Qe2 {[%clk 0:04:32.1]} 20... Nde3 {[%clk
0:03:17.6]} 21. Bxb7 {[%clk 0:04:26.8]} 21... Rb8 {[%clk 0:03:15.4]} 22. Be4
{[%clk 0:04:24.4]} 22... Qb6 {[%clk 0:02:27.5]} 23. b3 {[%clk 0:04:21.4]} 23...
Nxe5 {[%clk 0:02:21.2]} 24. Bxe3 {[%clk 0:04:19.6]} 24... Bxe3 {[%clk
0:02:19.3]} 25. Qxe3 {[%clk 0:04:18.9]} 25... Qxe3 {[%clk 0:02:08.7]} 26. Rxe3
{[%clk 0:04:16.2]} 26... Ng4 {[%clk 0:02:07.9]} 27. Re2 {[%clk 0:04:15.1]} 27...
f5 {[%clk 0:02:00.1]} 28. Bf3 {[%clk 0:04:13.6]} 28... Nf6 {[%clk 0:01:48.9]}
29. Rxe6 {[%clk 0:04:12.4]} 29... Rfe8 {[%clk 0:01:44.3]} 30. Rae1 {[%clk
0:04:11.3]} 30... Rxe6 {[%clk 0:01:36.5]} 31. Rxe6 {[%clk 0:04:11]} 31... Rd8
{[%clk 0:01:28.2]} 32. Rd6 {[%clk 0:04:10]} 32... Rxd6 {[%clk 0:01:24.4]} 33.
Nxd6 {[%clk 0:04:08.6]} 1-0